fUSD/lending_fUSD_20250226
["ID","MTS","AMOUNT","RATE_DAILY","PERIOD"]
[354657281,1740604246692,-500.0,0.00035963,14]
[354657282,1740604246701,-500.0,0.00035963,14]
[354657283,1740604246711,-1000.0,0.00035963,14]
[354657285,1740604246721,-500.0,0.00035963,14]
[354657287,1740604246731,-392.51554355,0.00035963,14]
[354657289,1740604246740,-1548.57311524,0.00035964,2]
[354660381,1740605114746,1377553.37163068,0.00025935,30]
[354660382,1740605126088,400.0,0.000108,2]
[354660383,1740605126121,371.37933579,0.000108,2]
[354660384,1740605127907,31847.46676892,0.00025935,30]
[354660386,1740605130098,79628.62066421,0.00011,2]
[354660387,1740605130127,47571.32368644,0.00011,2]
[354660405,1740605213163,4320.19451506,9.899e-05,2]
[354660417,1740605305454,1853.72041172,0.0001,2]
[354660418,1740605314117,81364.86151336,0.00025935,60]
[354660419,1740605314151,214.88852118,0.0001,2]
[354660423,1740605317667,2624.81194095,0.0001,2]
[354660426,1740605320589,257.57174494,0.000107,2]
[354660430,1740605324312,359.18845889,0.0002,90]
[354662974,1740605431616,-779.49443843,0.00013,2]
[354662975,1740605431626,-7839.42772,0.00014825,2]
[354662976,1740605431636,-204.24446576,0.000149,2]
[354662977,1740605431646,-543.90586765,0.000149,2]
[354662978,1740605431655,-151.63945946,0.00014973,2]
[354662979,1740605431665,-502.33739512,0.00014973,2]
[354662980,1740605431675,-160.56965905,0.00014973,2]
[354662981,1740605431684,-455.3517067,0.00014973,2]
[354662982,1740605431695,-153.62,0.0001499,2]
[354662983,1740605431704,-153.62,0.0001499,2]
[354662984,1740605431714,-500.0,0.00014999,2]
[354662985,1740605431723,-500.0,0.00014999,2]
[354662986,1740605431732,-385.64206008,0.00014999,2]
[354662987,1740605431742,-500.0,0.00014999,2]
[354662988,1740605431751,-500.0,0.00014999,2]
[354662989,1740605431762,-500.0,0.00014999,2]
[354662990,1740605431772,-150.0,0.00014999,2]
[354662991,1740605431781,-17820.12880425,0.00015,2]
[354662992,1740605431794,-21666.90572139,0.00015,2]
[354662993,1740605431808,-426.21351,0.00015,2]
[354663364,1740605437447,-316.32484563,0.000149,2]
[354663365,1740605437456,-709.82118197,0.00015,2]
[354663366,1740605437467,-1596.54061176,0.00015,2]
[354663367,1740605437530,-643.95004,0.00015,2]
[354663368,1740605437544,-15859.34069274,0.00015,2]
[354663369,1740605437681,-8450.00000001,0.00015,2]
[354663370,1740605437771,-896.23823155,0.00015,2]
[354663371,1740605437783,-3080.14743217,0.00015,2]
[354663395,1740605439524,-166.81354614,0.000149,2]
[354663396,1740605439533,-1374.10174813,0.00015,2]
[354663397,1740605439919,-656.14,0.00015,2]
[354663398,1740605439959,-17037.006,0.00015,2]
[354663399,1740605439991,-1244.47253538,0.00015,2]
[354663401,1740605440825,-1754.8557159,0.00015,2]
[354663402,1740605440836,-20436.48604784,0.00015,2]
[354663403,1740605440848,-3712.35395216,0.00015,2]
[354663404,1740605440859,-2242.81721868,0.00015,2]
[354663405,1740605440870,-9679.18278132,0.00015,2]
[354663406,1740605440882,-1246.8894044,0.00015,2]
[354663407,1740605440893,-402787.15297,0.00015,2]
[354663432,1740605442601,-12869.86333493,0.00015,2]
[354663435,1740605442680,-4943.7832645,0.00015,2]
[354663436,1740605442691,-5336.7,0.00015,2]
[354663437,1740605442702,-17009.2506,0.00015,2]
[354663438,1740605442764,-458.66029463,0.00015,2]
[354663439,1740605442775,-5429.41806683,0.00015,2]
[354663440,1740605442786,-2257.934975,0.00015,2]
[354663449,1740605443878,-475.6752,0.00015,2]
[354663450,1740605443889,-963.26849218,0.00015,2]
[354663451,1740605443899,-26741.28344912,0.00015,2]
[354663452,1740605443915,-7405.67087329,0.00015,2]
[354663456,1740605445518,-171.50533546,0.000149,2]
[354663457,1740605445528,-6754.05660825,0.00015,2]
[354663458,1740605445539,-809.7699952,0.00015,2]
[354663459,1740605445602,-10304.44267007,0.00015,2]
[354663460,1740605445613,-253.75054503,0.00015,2]
[354663461,1740605445625,-4258.90613164,0.00015,2]
[354663462,1740605445646,-207.49165158,0.00015,2]
[354663463,1740605445660,-1261.97878783,0.00015,2]
[354663464,1740605445673,-503.65279669,0.00015,2]
[354663465,1740605445687,-395.44499998,0.00015,2]
[354663466,1740605445700,-256.5465,0.00015,2]
[354663467,1740605445711,-6686.71919497,0.00015,2]
[354663468,1740605445722,-1049.66192647,0.00015,2]
[354663469,1740605445734,-13190.94865913,0.00015,2]
[354663470,1740605445745,-15387.1239229,0.00015,2]
[354663471,1740605445756,-262.87257624,0.00015,2]
[354663472,1740605445767,-117571.4016758,0.00015,2]
[354663473,1740605445827,-24591.14918466,0.00015,2]
[354663474,1740605445839,-705.59267736,0.00015,2]
[354663475,1740605445850,-624.40000021,0.00015,2]
[354663622,1740605692773,-348.17763399,0.000149,2]
[354663623,1740605692815,-316.32484563,0.000149,2]
[354663624,1740605692856,-543.90586765,0.000149,2]
[354663625,1740605692898,-150.0,0.00014999,2]
[354663626,1740605692943,-641.59165273,0.00015,2]
[354664991,1740606631985,-404.92261432,0.000147,2]
[354664992,1740606632003,-1332.65138568,0.000147,2]
[354664993,1740606632014,-155.944,0.000147,2]
[354664994,1740606632024,-150.0,0.00014707,2]
[354664995,1740606632034,-450.0,0.00014707,2]
[354664996,1740606632045,-1000.0,0.00014728,2]
[354664997,1740606632056,-1495.54636341,0.00014728,2]
[354664998,1740606632066,-300.0,0.00014899,2]
[354664999,1740606632077,-171.50533545,0.000149,2]
[354665000,1740606632089,-163.3955726,0.000149,2]
[354665001,1740606632099,-316.32484563,0.000149,2]
[354665002,1740606632110,-153.62,0.0001499,2]
[354665003,1740606632120,-1000.0,0.00014999,2]
[354665005,1740606632131,-500.0,0.00014999,2]
[354665007,1740606632141,-500.0,0.00014999,2]
[354665009,1740606632152,-500.0,0.00014999,2]
[354665011,1740606632163,-519.94944206,0.00014999,2]
[354665013,1740606632173,-150.0,0.00014999,2]
[354665015,1740606632183,-42397.18527443,0.00015,2]
[354665018,1740606632204,-251.16,0.00015,2]
[354665070,1740606637851,-3035.5533815,0.00015,2]
[354665071,1740606637863,-4082.91494039,0.00015,2]
[354665092,1740606639682,-272.73982991,0.00015,2]
[354665093,1740606639958,-84270.57798578,0.00015,2]
[354665094,1740606640003,-14326.73693985,0.00015,2]
[354665095,1740606640015,-4585.43637818,0.00015,2]
[354665096,1740606640028,-2226.92526545,0.00015,2]
[354665097,1740606640047,-420.0,0.00015,2]
[354665109,1740606643783,-1238.87723865,0.00015,2]
[354665110,1740606643794,-5432.42815964,0.00015,2]
[354665111,1740606643806,-2120.38,0.00015,2]
[354665114,1740606645947,-455.95058812,0.00015,2]
[354665115,1740606645959,-578.71636496,0.00015,2]
[354665116,1740606646097,-5062.55067815,0.00015,2]
[354666047,1740607195220,-1390.059,0.000147,2]
[354666048,1740607195244,-155.944,0.000147,2]
[354666049,1740607195267,-6003.997,0.000149,2]
[354666051,1740607474882,454.0,0.0002,30]
[354666056,1740607587934,-150.0,0.0001475,2]
[354666069,1740607728765,-3637.52718892,0.000148,2]
[354666070,1740607728798,-150.0,0.000148,2]
[354666071,1740607728828,-311.35499841,0.0001485,2]
[354666072,1740607728858,-683.40289366,0.000149,2]
[354666073,1740607728894,-4782.28508099,0.000149,2]
[354666074,1740607728935,-4782.28508099,0.000149,2]
[354666075,1740607728971,-4782.28508099,0.000149,2]
[354666076,1740607729004,-4782.28508099,0.000149,2]
[354666077,1740607729044,-4782.28508099,0.000149,2]
[354666078,1740607729464,-4782.28508099,0.000149,2]
[354666079,1740607729498,-240.08234192,0.000149,2]
[354666176,1740607819838,150.0,0.0001,2]
[354666191,1740607832056,-300.0,0.00014899,2]
[354666192,1740607832068,-6036.8815883,0.000149,2]
[354666193,1740607832091,-8556.64929165,0.000149,2]
[354666194,1740607832251,-1928.8,0.000149,2]
[354666595,1740607837770,-1587.28782462,0.000149,2]
[354666596,1740607837828,-9628.82015167,0.000149,2]
[354666597,1740607837838,-298.437972,0.000149,2]
[354666598,1740607837848,-675.23632188,0.000149,2]
[354666599,1740607837858,-2661.07636233,0.000149,2]
[354666600,1740607837868,-166.81354614,0.000149,2]
[354666601,1740607837877,-354.5570899,0.000149,2]
[354666602,1740607837886,-150.0,0.00014913,2]
[354666603,1740607837895,-450.0,0.00014925,2]
[354666604,1740607837905,-153.62,0.0001499,2]
[354666605,1740607837915,-27563.17664558,0.00015,2]
[354666606,1740607837926,-19027.63889999,0.00015,2]
[354666607,1740607837937,-26888.7585966,0.00015,2]
[354666608,1740607837948,-591.35,0.00015,2]
[354666609,1740607837960,-598.7670878,0.00015,2]
[354666610,1740607837971,-9178.54140044,0.00015,2]
[354666611,1740607838029,-1212.07607199,0.00015,2]
[354666612,1740607838041,-423.975,0.00015,2]
[354666613,1740607838053,-344.35548721,0.00015,2]
[354666614,1740607838065,-4272.8,0.00015,2]
[354666805,1740607839953,-10.13474568,0.00015,2]
[354666809,1740607839986,-388.86363569,0.00015,2]
[354666828,1740607840169,-4058.15833052,0.00015,2]
[354666840,1740607840354,-312.4220559,0.00015,2]
[354666841,1740607840366,-357.53,0.00015,2]
[354666842,1740607840377,-1468.53214749,0.00015,2]
[354666843,1740607840389,-4755.93091601,0.00015,2]
[354666845,1740607840400,-779.88358938,0.00015,2]
[354666853,1740607840469,-2254.030016,0.00015,2]
[354666855,1740607840480,-797.6518777,0.00015,2]
[354667230,1740607844090,-325.73897554,0.00015,2]
[354667232,1740607844106,-102109.10148175,0.00015,2]
[354667235,1740607844122,-1053.0,0.00015,2]
[354667237,1740607844134,-210294.30333393,0.00015,2]
[354667275,1740607846052,-53407.18860227,0.00015,2]
[354667276,1740607846108,-84876.266123,0.00015,2]
[354667277,1740607846270,-12537.34393874,0.00015,2]
[354667278,1740607846326,-598.23693058,0.00015,2]
[354667279,1740607846337,-563.90000102,0.00015,2]
[354667280,1740607846349,-4348.08231114,0.00015,2]
[354667305,1740607898667,-308.18970126,0.00014,4]
[354667306,1740607898692,-4000.0,0.0001485,2]
[354667307,1740607898720,-400.0,0.000149,5]
[354667308,1740607898744,-500.0,0.00014973,2]
[354667309,1740607898774,-75213.22499211,0.00015,2]
[354667310,1740607898799,-10196.15588542,0.00015,2]
[354667311,1740607898823,-4921.57842194,0.00015,2]
[354667312,1740607898850,-4460.85099927,0.00015,2]
[354667313,1740607911021,-50000.0,0.00015,2]
[354667314,1740607922652,-500.0,0.00014999,2]
[354667315,1740607922679,-361.03263392,0.00014999,2]
[354667316,1740607922707,-500.0,0.00014999,2]
[354667317,1740607922734,-500.0,0.00014999,2]
[354667318,1740607922760,-500.0,0.00014999,2]
[354667319,1740607922787,-500.0,0.00014999,2]
[354667320,1740607922814,-47138.96736608,0.00015,2]
[354667321,1740607924031,1000.0,0.00025938,30]
[354667322,1740607924611,1000.0,0.00025938,30]
[354667323,1740607925227,1000.0,0.00025938,30]
[354667325,1740607925672,-150.0,0.00014999,2]
[354667326,1740607925698,-49850.0,0.00015,2]
[354667331,1740607954317,-655.9295977,0.00014699,2]
[354667332,1740607954344,-320.69866193,0.000149,2]
[354667333,1740607954371,-14023.37174037,0.00015,2]
[354667344,1740608227592,-491.9471982,0.00014699,2]
[354667345,1740608227615,-150.0,0.00014899,2]
[354667346,1740608227637,-9358.0528018,0.000149,2]
[354667347,1740608228690,-8517.99803601,0.000149,2]
[354667348,1740608228713,-1482.00196399,0.000149,2]
[354667349,1740608229127,-1953.98508754,0.000149,2]
[354667350,1740608229149,-500.0,0.00014973,2]
[354667351,1740608229171,-150.0,0.00014999,2]
[354667352,1740608229194,-7396.01491246,0.00015,2]
[354667353,1740608229568,-10000.0,0.00015,2]
[354667354,1740608229935,-10000.0,0.00015,2]
[354667355,1740608230319,-10000.0,0.00015,2]
[354667356,1740608230693,-10000.0,0.00015,2]
[354667357,1740608231062,-10000.0,0.00015,2]
[354667358,1740608231445,-10000.0,0.00015,2]
[354667359,1740608231804,-10000.0,0.00015,2]
[354667360,1740608232193,-165.87548582,0.000149,2]
[354667361,1740608232226,-9834.12451418,0.00015,2]
[354667362,1740608232689,-10000.0,0.00015,2]
[354667363,1740608232953,-10000.0,0.00015,2]
[354667364,1740608233357,-10000.0,0.00015,2]
[354667365,1740608233738,-10000.0,0.00015,2]
[354667366,1740608234913,-10000.0,0.00015,2]
[354667367,1740608235854,-10000.0,0.00015,2]
[354667368,1740608237547,-10000.0,0.00015,2]
[354667369,1740608244208,-5571.0,0.00015,2]
[354667668,1740609032101,-297.31,0.00013992,2]
[354667669,1740609032113,-255.303,0.00013992,2]
[354667670,1740609032238,-171.927,0.00013992,2]
[354667671,1740609032251,-151.7249457,0.00014572,2]
[354667672,1740609032262,-526.29,0.00014572,2]
[354667673,1740609032274,-321.9850543,0.00014572,2]
[354667674,1740609032283,-233.13961181,0.00014699,2]
[354667675,1740609032292,-16409.21193392,0.00014699,2]
[354667676,1740609032303,-72002.39430758,0.00014699,2]
[354667677,1740609032313,-368.9603987,0.00014699,2]
[354667678,1740609032322,-450.0,0.00014699,2]
[354667679,1740609032332,-2504.929,0.000147,2]
[354667680,1740609032341,-165.406,0.000147,2]
[354667681,1740609032351,-400.0,0.000147,5]
[354667682,1740609032360,-2498.96508632,0.000147,2]
[354667683,1740609032370,-800.0,0.000148,5]
[354667684,1740609032379,-500.0,0.0001488,2]
[354667685,1740609032388,-300.0,0.00014899,2]
[354667687,1740609032397,-150.0,0.00014899,2]
[354667689,1740609032406,-2520.15,0.000149,2]
[354667691,1740609032415,-9784.8535,0.000149,2]
[354667693,1740609032425,-2751.2031,0.000149,2]
[354667695,1740609032434,-3991.75024477,0.000149,2]
[354667697,1740609032443,-1200.0,0.000149,5]
[354667699,1740609032452,-320.81181833,0.000149,2]
[354667701,1740609032462,-165.87548578,0.000149,2]
[354667703,1740609032477,-21042.27812961,0.000149,2]
[354667705,1740609032488,-7004.44318636,0.000149,2]
[354667707,1740609032498,-500.0,0.00014973,2]
[354667709,1740609032507,-153.63,0.0001499,2]
[354667711,1740609032517,-656.75707293,0.0001499,2]
[354667713,1740609032526,-500.0,0.00014999,2]
[354667715,1740609032536,-356.24663473,0.00014999,2]
[354667717,1740609032545,-500.0,0.00014999,2]
[354667719,1740609032555,-500.0,0.00014999,2]
[354667721,1740609032565,-500.0,0.00014999,2]
[354667722,1740609032575,-500.0,0.00014999,2]
[354667724,1740609032585,-500.0,0.00014999,2]
[354667726,1740609032594,-500.0,0.00014999,2]
[354667728,1740609032603,-150.0,0.00014999,2]
[354667730,1740609032613,-232699.15047953,0.00015,2]
[354667734,1740609032625,-230930.79035565,0.00015,2]
[354667736,1740609032635,-761.34990812,0.00015,2]
[354667738,1740609032645,-816.29733236,0.00015,2]
[354667740,1740609032655,-608434.34070463,0.00015,2]
[354667744,1740609032686,-85713.21425073,0.00015,2]
[354667746,1740609032696,-290377.30875697,0.00015,2]
[354668056,1740609038183,-3275.07756783,0.00015,2]
[354668057,1740609038195,-1702.0,0.00015,2]
[354668098,1740609040290,-9723.17236,0.00015,2]
[354668099,1740609040348,-2191.17123083,0.00015,2]
[354668100,1740609040359,-383.37,0.00015,2]
[354668212,1740609045735,-1302.99031854,0.00015,2]
[354668213,1740609045748,-102109.10148175,0.00015,2]
[354668215,1740609045762,-11285.56518829,0.00015,2]
[354668216,1740609045780,-8199.66688898,0.00015,2]
[354668217,1740609045791,-6234.50097467,0.00015,2]
[354668242,1740609046237,-2629.65266937,0.00015,2]
[354668256,1740609046367,-4739.66040001,0.00015,2]
[354668505,1740609701011,-276.720299,0.00014699,2]
[354668506,1740609701033,-9723.279701,0.000148,2]
[354668509,1740609759089,-207.5402243,0.00014699,2]
[354668510,1740609759111,-9214.77061564,0.000148,2]
[354668511,1740609759132,-725.8447,0.000148,2]
[354668512,1740609759155,-500.0,0.0001488,2]
[354668513,1740609759180,-165.87548578,0.0001488,2]
[354668514,1740609759201,-320.81181833,0.0001488,2]
[354668515,1740609759223,-8865.15715595,0.000149,2]
[354668937,1740610232406,-155.6551682,0.00014699,2]
[354668938,1740610232417,-500.0,0.00014781,2]
[354668939,1740610232426,-201.2428,0.000148,2]
[354668940,1740610232435,-384.0608118,0.000148,2]
[354668941,1740610232446,-447.46047696,0.000148,2]
[354668942,1740610232458,-99.86921124,0.000148,2]
[354668943,1740610232467,-165.87548578,0.000148,2]
[354668944,1740610232476,-529.98598251,0.000148,2]
[354668945,1740610232487,-6155.88,0.000148,2]
[354668946,1740610232498,-1760.0,0.000148,2]
[354669496,1740610238346,-2748.18135064,0.000148,2]
[354669498,1740610238358,-896.85255277,0.000148,2]
[354669500,1740610238368,-512.64522639,0.000148,2]
[354669507,1740610238424,-5635.17228769,0.000148,2]
[354669509,1740610238434,-4406.49967454,0.0001488,2]
[354669511,1740610238443,-17044.24528494,0.0001488,2]
[354669513,1740610238453,-159488.08275283,0.000149,2]
[354669515,1740610238464,-4749.27960002,0.000149,2]
[354669628,1740610240278,-309.23546479,0.000149,2]
[354669629,1740610240291,-16099.19834646,0.000149,2]
[354669630,1740610240402,-1077.63026734,0.000149,2]
[354669631,1740610240413,-361.79631518,0.000149,2]
[354669632,1740610240424,-3150.11392817,0.000149,2]
[354669633,1740610240435,-26661.6629939,0.000149,2]
[354669634,1740610240446,-7901.67657273,0.000149,2]
[354669635,1740610240493,-987.58941939,0.000149,2]
[354669636,1740610240505,-827.02762067,0.000149,2]
[354669637,1740610240516,-48500.0,0.000149,2]
[354669638,1740610240527,-14330.042334,0.000149,2]
[354669639,1740610240538,-368485.72802857,0.000149,2]
[354669640,1740610240548,-300.0,0.000149,5]
[354669641,1740610240557,-663.55857431,0.0001498,2]
[354669642,1740610240567,-172.95717648,0.0001499,2]
[354669643,1740610240576,-153.63,0.0001499,2]
[354669644,1740610240585,-3080.0,0.00015,2]
[354669645,1740610240594,-87909.80784484,0.00015,2]
[354669646,1740610240609,-13201.90983459,0.00015,2]
[354669647,1740610240620,-5663.00549854,0.00015,2]
[354669648,1740610240631,-9771.12056407,0.00015,2]
[354669649,1740610240642,-4014.5,0.00015,2]
[354669650,1740610240653,-6014.0,0.00015,2]
[354669651,1740610240681,-518.72365054,0.00015,2]
[354669652,1740610240692,-3365.45796823,0.00015,2]
[354669653,1740610240703,-1025.06710056,0.00015,2]
[354669654,1740610240715,-2466.38505697,0.00015,2]
[354669655,1740610240726,-34940.26146743,0.00015,2]
[354669656,1740610240737,-415.405,0.00015,2]
[354669657,1740610240748,-18676.41687039,0.00015,2]
[354669658,1740610240758,-268.032,0.00015,2]
[354669659,1740610240769,-4906.34572,0.00015,2]
[354669660,1740610240780,-1034.6788,0.00015,2]
[354669789,1740610243356,-46550.76823079,0.00015,2]
[354669791,1740610243366,-39731.23176921,0.00015,2]
[354669793,1740610243377,-292.35005528,0.00015,2]
[354669795,1740610243390,-371.45349006,0.00015,2]
[354669798,1740610243401,-686.0995385,0.00015,2]
[354669800,1740610243412,-29717.30834603,0.00015,2]
[354669802,1740610243425,-78.818627,0.00015,2]
[354669804,1740610243434,-4000.0,0.00015,2]
[354669806,1740610243443,-1964.72819017,0.0001508,2]
[354669808,1740610243454,-1163.764995,0.0001508,2]
[354669811,1740610243466,-993.65312793,0.0001508,2]
[354669813,1740610243477,-8921.163454,0.0001508,2]
[354669815,1740610243487,-5990.3078281,0.0001509,2]
[354669817,1740610243495,-150.0,0.000151,2]
[354669819,1740610243505,-1517.64,0.000153,2]
[354669821,1740610243515,-10189.97121351,0.000154,2]
[354669823,1740610243530,-3468.27493008,0.000154,2]
[354669999,1740610245444,-2342.16134266,0.000154,2]
[354670000,1740610245454,-486.58364724,0.000154,2]
[354670002,1740610245464,-150.0,0.00015526,7]
[354670004,1740610245473,-688.31,0.00016078,2]
[354670006,1740610245482,-150.0,0.00016169,2]
[354670008,1740610245491,-450.0,0.00016169,2]
[354670011,1740610245501,-150.0,0.00016169,2]
[354670012,1740610245510,-122.9450101,0.00016169,2]
[354670015,1740610245522,-327.0549899,0.00016169,2]
[354670017,1740610245530,-150.0,0.00016169,2]
[354670019,1740610245539,-450.0,0.00016169,2]
[354670021,1740610245548,-1074.03080141,0.000162,3]
[354670023,1740610245564,-869.30755836,0.000162,3]
[354670025,1740610245575,-1642.66164023,0.000162,3]
[354670027,1740610245585,-116.69835975,0.00016603,2]
[354670030,1740610245596,-383.30164025,0.00016603,2]
[354670031,1740610245605,-1741.16837425,0.00017,5]
[354670034,1740610245616,-2429.625,0.00017,5]
[354670036,1740610245628,-1379.20662575,0.00017,5]
[354670038,1740610245637,-150.0,0.0001725,5]
[354670040,1740610245646,-242.96003249,0.0001725,5]
[354670042,1740610245655,-649.83334176,0.000173,2]
[354670044,1740610245667,-891.16665824,0.000173,2]
[354670046,1740610245676,-600.0,0.00017868,2]
[354670048,1740610245684,-1686.38,0.00017869,2]
[354670050,1740610245694,-1138.87480803,0.00018,2]
[354670052,1740610245703,-1000.0,0.00018098,2]
[354670054,1740610245711,-500.0,0.00018215,2]
[354670056,1740610245720,-154.37264431,0.00018215,2]
[354670058,1740610245729,-500.0,0.00018215,2]
[354670060,1740610245739,-500.0,0.00018215,2]
[354670062,1740610245748,-500.0,0.00018215,2]
[354670064,1740610245757,-500.0,0.00018215,2]
[354670066,1740610245766,-4406.49967445,0.00018216,2]
[354670068,1740610245775,-2706.72587289,0.00018216,2]
[354670070,1740610245786,-9056.9747432,0.00018216,2]
[354670072,1740610245797,-5280.54466881,0.00018216,2]
[354670074,1740610245807,-688.31,0.00018342,2]
[354670076,1740610245817,-242.7424988,0.00018472,2]
[354670078,1740610245826,-500.0,0.00019143,2]
[354670081,1740610245837,-185.77,0.00019201,2]
[354670083,1740610245846,-167.33,0.00019252,2]
[354670085,1740610245855,-8795.24,0.00019294,2]
[354670087,1740610245867,-250.0,0.00019422,2]
[354670089,1740610245876,-163.02,0.00019425,2]
[354670090,1740610245886,-2362.78646236,0.00019426,2]
[354670093,1740610245898,-21537.21353764,0.00019426,2]
[354670095,1740610245907,-500.0,0.0001948,2]
[354670097,1740610245916,-15471.25,0.00019537,2]
[354670098,1740610245924,-2000.0,0.00019537,2]
[354670100,1740610245934,-744.03,0.0001955,2]
[354670102,1740610245947,-600.0,0.00019591,2]
[354670104,1740610245957,-2233.18,0.00019635,2]
[354670106,1740610245966,-1904.38,0.00019803,2]
[354670109,1740610245976,-2395.87,0.00019803,2]
[354670111,1740610245986,-960.71,0.00019812,2]
[354670112,1740610245995,-2318.82,0.00019823,2]
[354670115,1740610246005,-1852.42,0.00019837,2]
[354670116,1740610246014,-505.4,0.00019837,2]
[354670119,1740610246023,-185.77,0.00019841,2]
[354670120,1740610246034,-250.0,0.00019848,2]
[354670122,1740610246044,-700.0,0.000199,7]
[354670125,1740610246055,-150.0,0.00019973,2]
[354670126,1740610246064,-4000.0,0.0002,2]
[354670129,1740610246074,-169.25,0.00020252,2]
[354670131,1740610246083,-1000.0,0.0002036,2]
[354670134,1740610246094,-185.77,0.00020481,2]
[354670136,1740610246104,-150.0,0.000205,2]
[354670137,1740610246113,-744.03,0.00020528,2]
[354670140,1740610246123,-688.31,0.00020606,2]
[354670142,1740610246132,-151.8,0.00020881,2]
[354670144,1740610246142,-300.0,0.00020938,2]
[354670146,1740610246151,-250.0,0.00021,2]
[354670148,1740610246160,-185.77,0.00021121,2]
[354670150,1740610246169,-2003.943,0.00021262,2]
[354670152,1740610246178,-165.406,0.00021262,2]
[354670156,1740610246187,-163.02,0.00021368,2]
[354670160,1740610246198,-487.72,0.0002145,2]
[354670163,1740610246208,-744.03,0.00021506,2]
[354670165,1740610246217,-4406.49967445,0.00021551,2]
[354670168,1740610246226,-17044.2452849,0.00021551,2]
[354670172,1740610246237,-200.0,0.00021712,2]
[354670176,1740610246246,-663.55857428,0.000218,2]
[354670180,1740610246256,-179.61,0.00021918,2]
[354670183,1740610246266,-169.25,0.00021923,2]
[354670186,1740610246275,-300.0,0.00022308,2]
[354670187,1740610246284,-744.03,0.00022483,2]
[354670189,1740610246293,-1000.0,0.00022622,2]
[354670191,1740610246303,-437.83804862,0.0002286,2]
[354670195,1740610246313,-688.31,0.0002287,2]
[354670198,1740610246322,-151.8,0.00022969,2]
[354670200,1740610246331,-300.0,0.00023,2]
[354670203,1740610246340,-163.02,0.00023311,2]
[354670206,1740610246349,-744.03,0.00023461,2]
[354670208,1740610246359,-169.25,0.00023594,2]
[354670211,1740610246368,-207.53,0.00023836,2]
[354670214,1740610246378,-395.98713472,0.000239,3]
[354670216,1740610246387,-395.98713458,0.000239,3]
[354670218,1740610246396,-395.98713458,0.000239,3]
[354670219,1740610246405,-395.98713458,0.000239,3]
[354670221,1740610246415,-395.98713458,0.000239,3]
[354670223,1740610246424,-395.98713458,0.000239,3]
[354670226,1740610246433,-167.33,0.00024065,2]
[354670227,1740610246443,-151.0,0.00024109,7]
[354670229,1740610246452,-487.72,0.00024131,2]
[354670231,1740610246461,-395.98713458,0.0002421,3]
[354670233,1740610246470,-500.0,0.00024568,6]
[354670235,1740610246479,-1000.0,0.00024658,2]
[354670237,1740610246488,-500.0,0.00024668,5]
[354670239,1740610246497,-198.84,0.00024712,30]
[354670241,1740610246507,-1000.0,0.00024885,2]
[354670243,1740610246516,-4406.49967445,0.00024887,2]
[354670245,1740610246525,-17044.2452849,0.00024887,2]
[354670247,1740610246534,-808.650681,0.00024928,2]
[354670249,1740610246543,-808.65068088,0.00024928,2]
[354670251,1740610246552,-248.98534897,0.00024959,2]
[354670253,1740610246561,-151.62172,0.00025,7]
[354670255,1740610246571,-151.0,0.00025,7]
[354670257,1740610246580,-161.271723,0.00025,7]
[354670259,1740610246589,-161.271723,0.00025,7]
[354670261,1740610246598,-350.0,0.00025,2]
[354670263,1740610246608,-4000.0,0.00025,2]
[354670265,1740610246617,-1686.38,0.00025016,2]
[354670267,1740610246626,-688.31,0.00025134,2]